bitfinex/quotes_ETHUSD_20220106
["timestamp","ask_amount","ask_price","bid_price","bid_amount"]
[1641505856743,0.90639522,3427.7,3427.3,0.73109907]
[1641505856944,0.90639522,3427.7,3427.3,2.48965807]
[1641505857146,0.90639522,3427.7,3427.3,2.18965807]
[1641505857343,0.90639522,3427.7,3427.3,1.46031807]
[1641505857748,0.90639522,3427.8,3427.3,1.46031807]
[1641505857945,0.90639522,3427.8,3427.5,0.72929]
[1641505858145,0.90639522,3427.8,3427.5,0.7292977]
[1641505859547,0.90639522,3427.8,3427.6,0.7293]
[1641505859806,0.90639522,3427.8,3427.3,0.00170527]
[1641505861608,0.90639522,3427.8,3427.3,2.19889624]
[1641505861812,1.63581522,3427.8,3427.3,1.46951274]
[1641505863208,0.90639522,3427.7,3427.3,0.00170527]
[1641505863648,0.90639522,3427.7,3427.3,0.73111687]
[1641505864648,0.90639522,3427.6,3427.3,0.73111687]
[1641505865248,0.90639522,3427.6,3427.4,0.7293887]
[1641505865449,0.90639522,3427.5,3427.4,0.7293887]
[1641505866747,2.9,3427.9,3427.4,0.7293887]
[1641505866957,2.9,3427.9,3427.3,0.73111687]
[1641505867699,0.84159824,3427.8,3427.4,0.7293664]
[1641505867899,0.84159824,3427.8,3427.3,0.73111687]
[1641505868303,0.84159824,3427.8,3427.5,0.72931]
[1641505869401,0.84159824,3427.8,3427.5,1.458665]
[1641505869605,0.84159824,3427.8,3427.6,3.43762133]
[1641505869902,0.84159824,3427.8,3427.7,7.8834215]
[1641505870101,0.84159824,3427.8,3427.7,10.7222322]
[1641505870300,2.9,3427.9,3427.7,10.75357762]
[1641505870502,2.9,3427.9,3427.8,8.77789505]
[1641505870703,2.9,3427.9,3427.8,3.09789505]
[1641505870905,2.90170527,3427.9,3427.8,5.21115883]
[1641505871371,2.90170527,3427.9,3427.8,8.84726371]
[1641505871568,2.90170527,3427.9,3427.8,8.84933401]
[1641505871770,2.90170527,3427.9,3427.8,8.81115883]
[1641505871973,2.90170527,3427.9,3427.8,10.2789663]
[1641505872774,2.90170527,3427.9,3427.8,8.81115883]
[1641505872972,2.90170527,3427.9,3427.8,5.21115883]
[1641505873370,2.90170527,3427.9,3427.8,8.61115883]
[1641505874372,2.90170527,3427.9,3427.8,5.21115883]
[1641505875999,2.90170527,3427.9,3427.8,7.70973431]
[1641505877201,2.90170527,3427.9,3427.8,5.59647053]
[1641505878650,2.90170527,3427.9,3427.8,3.39789505]
[1641505879650,2.90170527,3427.9,3427.8,3.09789505]
[1641505881251,2.90170527,3427.9,3427.8,5.94789505]
[1641505881752,2.90170527,3427.9,3427.8,5.98216107]
[1641505881953,2.90170527,3427.9,3427.8,5.94789505]
[1641505882151,2.90170527,3427.9,3427.8,3.09789505]
[1641505885800,2.90170527,3427.9,3427.8,1.63965505]
[1641505886850,2.90170527,3427.9,3427.8,0.42]
[1641505887049,2.90170527,3427.9,3427.7,0.7291152]
[1641505887249,2.90170527,3427.9,3427.5,0.0048105]
[1641505887449,0.00113684,3427.8,3427.5,0.0048105]
[1641505887649,1.11953684,3427.8,3427.5,0.0048105]
[1641505888650,1.84897684,3427.8,3427.5,0.0048105]
[1641505889450,2.57840684,3427.8,3427.5,0.0048105]
[1641505890410,1.0,3427.7,3427.5,0.0048105]
[1641505891601,1.8078076,3427.7,3427.5,0.0048105]
[1641505892001,2.1078076,3427.7,3427.5,0.0048105]
[1641505892403,2.3673076,3427.7,3427.5,0.0048105]
[1641505893008,0.8078076,3427.6,3427.5,0.0048105]
[1641505893205,1.1078076,3427.6,3426.4,1.00132818]
[1641505893405,6.77966,3427.4,3426.4,1.00132818]
[1641505893652,8.07966,3427.4,3426.5,0.00625266]
[1641505893849,7.35,3427.4,3426.5,0.00625266]
[1641505894053,1.0,3427.3,3426.5,0.00625266]
[1641505894649,0.72965,3426.8,3426.2,0.00795793]
[1641505894852,2.02470965,3426.6,3426.2,0.00795793]
[1641505895252,2.02470965,3426.6,3426.3,1.23218322]
[1641505895453,0.8078076,3427.2,3426.3,1.23218322]
[1641505895657,1.1078076,3427.2,3426.4,0.00682108]
[1641505895852,1.75916,3427.2,3426.4,0.00682108]
[1641505896053,0.72957,3427.2,3426.4,0.00682108]
[1641505896252,2.91836,3427.5,3426.4,0.00682108]
[1641505896653,3.21836,3427.5,3426.4,0.00682108]
[1641505896953,1.97879738,3427.2,3426.4,0.00682108]
[1641505897401,0.72955,3427.4,3426.4,0.00682108]
[1641505897600,1.46017684,3427.8,3426.4,2.71864644]
[1641505897601,0.00113684,3427.8,3426.4,2.71864644]
[1641505897801,0.00113684,3427.8,3426.5,0.55203085]
[1641505898004,0.00113684,3427.8,3427.6,1.42321341]
[1641505898602,0.00113684,3427.8,3427.7,1.67674157]
[1641505899209,0.00113684,3427.8,3427.7,3.80724892]
[1641505899410,0.00113684,3427.8,3427.7,3.86886887]
[1641505899605,0.00113684,3427.8,3427.7,1.67674157]
[1641505900814,0.00113684,3427.8,3427.7,2.09674157]
[1641505901050,0.00113684,3427.8,3427.7,2.82594157]
[1641505904997,2.90113684,3427.8,3427.7,2.82594157]
[1641505905495,2.90113684,3427.8,3427.7,0.42]
[1641505905696,2.90113684,3427.8,3427.6,2.15248521]
[1641505906594,2.90113684,3427.8,3427.7,1.80138926]
[1641505915500,2.90113684,3427.8,3427.6,2.15248521]
[1641505917451,2.9,3427.8,3427.6,2.15248521]
[1641505918053,2.9,3427.8,3427.6,0.7292718]
[1641505918451,2.9,3427.8,3427.4,1.458614]
[1641505921217,2.9,3427.8,3427.5,1.86218297]
[1641505922718,2.9,3427.8,3427.6,0.7293556]
[1641505923854,2.9,3427.8,3427.3,0.00477532]
[1641505923855,1.45909,3427.7,3427.3,0.00477532]
[1641505924055,2.45909,3427.7,3427.3,0.00477532]
[1641505924256,1.8225072,3427.6,3427.3,0.00477532]
[1641505924653,2.1225072,3427.6,3427.3,0.00477532]
[1641505925053,0.72955,3427.5,3427.3,0.00477532]
[1641505925253,1.8225072,3427.6,3426.9,1.13667044]
[1641505925254,0.88339897,3427.7,3426.9,1.13667044]
[1641505925554,0.88339897,3427.7,3427.0,0.00341054]
[1641505925754,0.88339897,3427.5,3427.0,0.00341054]
[1641505926663,2.72496645,3427.7,3427.1,0.7294396]
[1641505926858,1.67642267,3427.6,3427.1,0.7294396]
[1641505927057,1.67642267,3427.6,3427.2,0.0022737]
[1641505927704,0.72947,3427.5,3427.2,0.0022737]
[1641505928101,1.61286897,3427.5,3427.2,0.0022737]
[1641505929000,1.61286897,3427.5,3427.0,0.00341054]
[1641505929402,0.88339897,3427.4,3427.0,0.00341054]
[1641505930502,0.88339897,3427.4,3427.0,2.4030346]
[1641505930902,0.88339897,3427.4,3427.1,0.00284212]
[1641505931355,0.88339897,3427.4,3427.2,0.72922]
[1641505931555,0.88339897,3427.4,3427.2,2.88616227]
[1641505931760,0.88339897,3427.4,3427.3,3.60170527]
[1641505931962,0.88339897,3427.7,3427.3,3.60170527]
[1641505932157,0.88339897,3427.7,3427.3,4.33094527]
[1641505932358,0.88339897,3427.7,3427.4,3.60194252]
[1641505932657,0.88339897,3427.7,3427.4,1.45848]
[1641505933057,0.88339897,3427.7,3427.5,1.47374825]
[1641505933257,0.88339897,3427.7,3427.5,4.35176377]
[1641505933458,0.88339897,3427.7,3427.5,4.34499035]
[1641505933657,0.88339897,3427.7,3427.5,5.07422035]
[1641505933957,2.9,3427.8,3427.6,1.47374825]
[1641505934158,2.9,3427.8,3427.7,2.22578051]
[1641505935500,3.8402028,3427.8,3427.7,2.95498051]
[1641505936201,3.8402028,3427.8,3427.7,2.22578051]
[1641505937704,3.8402028,3427.8,3427.6,3.66134685]
[1641505937902,3.8402028,3427.8,3427.6,2.20294685]
[1641505938955,0.9402028,3427.7,3427.6,0.7291986]
[1641505939157,0.9402028,3427.7,3427.6,2.95512784]
[1641505942064,0.9402028,3427.7,3427.6,4.42887609]
[1641505943523,0.9402028,3427.7,3427.6,2.95512784]
[1641505946854,2.9,3427.8,3427.6,3.68434784]
[1641505947052,2.9,3427.8,3427.6,4.41356784]
[1641505947752,2.9,3427.8,3427.6,5.14278784]
[1641505948154,2.9,3427.8,3427.6,4.41356784]
[1641505948356,2.9,3427.8,3427.6,3.68434784]
[1641505948557,2.9,3427.8,3427.6,1.4584186]
[1641505948956,2.9,3427.8,3427.6,0.7291986]
[1641505949558,0.8760278,3427.7,3427.6,0.7291986]
[1641505952409,0.8760278,3427.7,3427.6,2.87522629]
[1641505955560,0.8760278,3427.7,3427.6,5.06460357]
[1641505956059,0.8760278,3427.7,3427.6,5.48460357]
[1641505956260,1.57999708,3428.4,3427.8,11.45]
[1641505956459,1.57999708,3428.4,3428.0,19.10337053]
[1641505956658,0.00397896,3428.3,3428.1,2.71128113]
[1641505956858,0.00397896,3428.3,3428.2,6.83347129]
[1641505957058,0.95852168,3428.4,3428.2,2.55347129]
[1641505957510,1.48284533,3428.7,3428.3,11.17904328]
[1641505957705,1.48284533,3428.7,3428.4,0.42]
[1641505957909,0.00568423,3428.6,3428.4,0.42]
[1641505958306,0.00511581,3428.5,3428.4,6.52]
[1641505958506,0.00511581,3428.5,3428.4,8.68809627]
[1641505958806,0.05611918,3429.2,3428.5,6.95]
[1641505959008,0.05611918,3429.2,3428.6,0.42]
[1641505959308,6.20477525,3429.3,3428.6,0.42]
[1641505959309,6.2,3429.3,3429.1,1.14748724]
[1641505959707,0.00397896,3429.2,3429.1,1.87638724]
[1641505960110,0.00397896,3429.2,3429.1,4.03110487]
[1641505960508,0.00397896,3429.2,3429.1,5.48889487]
[1641505960707,0.00397896,3429.2,3429.1,4.75999487]
[1641505961958,0.00397896,3429.2,3429.1,5.48889487]
[1641505962761,0.00397896,3429.2,3429.1,34.03465699]
[1641505964262,0.00397896,3429.2,3429.1,35.30255598]
[1641505965103,1.48976803,3430.0,3429.2,11.45]
[1641505965316,1.48976803,3430.0,3429.9,7.31295731]
[1641505965502,1.23886803,3430.0,3429.9,8.35135731]
[1641505965702,0.6919197,3430.4,3430.0,11.45]
[1641505966001,0.6919197,3430.4,3430.1,0.55203085]
[1641505966002,0.00625266,3430.3,3430.1,0.55203085]
[1641505966206,0.6919197,3430.4,3430.2,7.55237785]
[1641505966403,3.71102316,3430.7,3430.2,1.64211044]
[1641505966602,3.71102316,3430.7,3430.4,20.0238779]
[1641505966801,3.71102316,3430.7,3430.5,2.07352326]
[1641505966802,0.00170527,3430.6,3430.5,2.07352326]
[1641505967002,0.00170527,3430.6,3430.5,0.42]
[1641505968203,0.00341835,3430.6,3430.5,0.42]
[1641505968403,0.00341835,3430.6,3430.2,2.18564]
[1641505968661,0.00341835,3430.6,3430.2,0.72871]
[1641505968963,0.00113685,3430.5,3430.2,0.72871]
[1641505969160,0.00113685,3430.5,3430.3,0.7284375]
[1641505969359,0.00113685,3430.5,3430.2,0.72871]
[1641505973727,0.00113685,3430.5,3430.3,0.7286492]
[1641505974729,0.00113685,3430.5,3430.3,0.75879437]
[1641505975328,0.00113685,3430.5,3430.3,0.7286492]
[1641505975531,0.00113685,3430.5,3430.3,2.22500928]
[1641505975828,2.90113685,3430.5,3430.3,2.19087299]
[1641505976060,2.90113685,3430.5,3430.3,2.22096889]
[1641505976264,2.90113685,3430.5,3430.3,2.19087299]
[1641505976466,2.90113685,3430.5,3430.3,2.22120934]
[1641505976662,2.90113685,3430.5,3430.3,2.19087299]
[1641505977065,2.90113685,3430.5,3430.3,1.46222379]
[1641505977864,2.90113685,3430.5,3430.2,2.19093379]
[1641505978864,0.00082819,3430.4,3430.2,0.72871]
[1641505980014,0.00082819,3430.4,3430.2,4.22871]
[1641505980209,0.00082819,3430.4,3430.3,3.5]
[1641505981011,0.00082819,3430.4,3430.2,0.72871]
[1641505981212,0.00082819,3430.4,3430.3,1.46222379]
[1641505981910,0.00082819,3430.4,3430.3,2.01425464]
[1641505982112,0.00082819,3430.4,3430.3,0.55203085]
[1641505982811,0.00082819,3430.4,3430.3,2.01349821]
[1641505983013,0.00082819,3430.4,3430.3,5.21349821]
[1641505983215,0.00082819,3430.4,3430.3,2.01349821]
[1641505986065,0.00082819,3430.4,3430.3,0.55203085]
[1641505987714,2.90113685,3430.5,3430.3,0.55203085]
[1641505992862,2.90113685,3430.5,3430.2,2.9145197]
[1641505993061,2.90113685,3430.5,3430.3,0.55203085]
[1641505993666,2.90113685,3430.5,3430.3,0.85203085]
[1641505993864,2.90113685,3430.5,3430.3,1.85203085]
[1641505994461,2.90113685,3430.5,3430.3,0.85203085]
[1641505994661,2.90113685,3430.5,3430.3,3.85310616]
[1641505995510,2.90113685,3430.5,3430.4,0.72854]
[1641505998865,2.9,3430.5,3430.4,0.72854]
[1641506000963,2.9,3430.5,3430.4,1.14854]
[1641506004422,2.9,3430.5,3430.4,3.34350265]
[1641506004721,2.9,3430.5,3430.4,2.61496265]
[1641506004926,5.1245158,3430.5,3430.4,2.19496265]
[1641506005722,2.9,3430.5,3430.4,6.265e-05]
[1641506005922,5.88367414,3430.5,3430.4,6.265e-05]
[1641506006163,5.88367414,3430.5,3430.1,1.46613773]
[1641506007263,5.88367414,3430.5,3429.5,0.85030796]
[1641506007264,2.25611532,3429.8,3429.5,0.85030796]
[1641506007465,2.25611532,3429.8,3429.5,2.31808956]
[1641506007664,2.25611532,3429.8,3429.6,0.00397896]
[1641506012316,0.01224997,3430.5,3429.6,0.00397896]
[1641506012717,0.72889,3430.4,3429.6,0.00397896]
[1641506013419,2.21165804,3430.4,3429.6,0.00397896]
[1641506013664,2.21165804,3430.4,3429.8,0.72883]
[1641506014068,2.21165804,3430.4,3429.9,0.00227369]
[1641506016369,2.15554854,3430.3,3429.9,0.00227369]
[1641506016772,2.15554854,3430.3,3429.7,1.47072419]
[1641506016969,2.15554854,3430.3,3429.8,0.00284212]
[1641506018616,2.11457208,3430.3,3429.8,0.00284212]
[1641506018815,5.84055804,3430.4,3429.8,0.00284212]
[1641506020018,5.84055804,3430.4,3429.8,1.47015577]
[1641506020417,5.84055804,3430.4,3429.9,0.00227369]
[1641506024911,0.72889,3430.2,3429.9,0.00227369]
[1641506026316,0.72889,3430.2,3429.8,0.00284212]
[1641506028325,2.18078302,3430.1,3429.8,0.00284212]
[1641506028577,0.72899,3430.0,3429.8,0.00284212]
[1641506028772,2.12881777,3429.9,3429.8,0.00284212]
[1641506028974,2.1074516,3429.9,3429.8,0.00284212]
[1641506029372,0.72899,3430.0,3429.8,0.00284212]
[1641506029979,5.11165804,3430.4,3429.9,0.55203085]
[1641506030380,5.11165804,3430.4,3430.0,0.00170527]
[1641506032714,5.11165804,3430.4,3429.8,0.00284212]
[1641506032918,5.84051804,3430.4,3429.8,0.00284212]
[1641506035020,5.84051804,3430.4,3429.7,0.00341054]
[1641506036264,2.12452777,3430.3,3429.7,0.00341054]
[1641506036466,5.84051804,3430.4,3429.7,0.00341054]
[1641506041827,0.72893,3430.2,3429.7,0.00341054]
[1641506046367,0.72893,3430.2,3429.7,1.47072419]
[1641506046766,0.72893,3430.2,3429.8,0.00284212]
[1641506047626,0.72893,3430.2,3429.8,1.47015577]
[1641506048029,0.72893,3430.2,3429.9,0.00227369]
[1641506049125,0.72893,3430.2,3429.8,0.00284212]
[1641506049325,0.72893,3430.2,3429.8,1.47015577]
[1641506049729,0.72893,3430.2,3429.9,0.00227369]
[1641506050729,5.84052804,3430.4,3429.9,0.00227369]
[1641506051173,5.84052804,3430.4,3429.9,1.46958734]
[1641506051578,5.84052804,3430.4,3430.0,0.00170527]
[1641506053474,5.84052804,3430.4,3430.0,1.46901892]
[1641506053773,5.84052804,3430.4,3430.1,0.00113685]
[1641506054819,5.84052804,3430.4,3430.0,0.00170527]
[1641506055118,2.12606029,3430.3,3430.0,0.00170527]
[1641506055519,5.84052804,3430.4,3430.0,0.00170527]
[1641506055718,5.84052804,3430.4,3429.9,0.00227369]
[1641506055922,0.72889,3430.3,3429.9,0.00227369]
[1641506056318,2.89663089,3430.3,3429.9,0.00227369]
[1641506056520,1.0,3430.2,3429.9,0.00227369]
[1641506056722,2.82263176,3430.1,3429.9,0.00227369]
[1641506056919,3.12263176,3430.1,3429.9,0.00227369]
[1641506057123,13.22704399,3430.0,3429.9,0.00227369]
[1641506058324,13.22704399,3430.0,3429.3,0.00568423]
[1641506058568,0.72913,3429.7,3429.3,0.00568423]
[1641506058764,2.9165153,3429.8,3429.3,0.00568423]
[1641506058765,2.3486992,3429.6,3429.3,0.00568423]
[1641506059566,0.7291243,3429.5,3429.3,0.00568423]
[1641506059765,2.33696197,3429.4,3429.1,0.00682108]
[1641506059966,0.72917,3429.3,3429.1,0.00682108]
[1641506060170,2.20710615,3429.2,3429.1,0.00682108]
[1641506060566,3.97435741,3429.2,3429.1,0.00682108]
[1641506060773,3.97435741,3429.2,3428.9,0.00795793]
[1641506060966,0.72925,3429.1,3428.9,0.00795793]
[1641506061173,2.18503781,3429.0,3428.9,0.00795793]
[1641506062432,0.72925,3429.1,3428.9,0.00795793]
[1641506062828,0.72925,3429.1,3428.7,0.00909477]
[1641506062829,1.72925,3429.1,3428.7,0.00909477]
[1641506063431,1.72925,3429.1,3428.7,1.47640842]
[1641506063832,1.72925,3429.1,3428.8,0.00852635]
[1641506067276,4.62925,3429.1,3428.8,0.00852635]
[1641506071720,4.62925,3429.1,3428.7,0.00909477]
[1641506071919,4.62925,3429.1,3428.7,1.47640842]
[1641506072117,3.62925,3429.1,3428.7,1.47640842]
[1641506072317,3.62925,3429.1,3428.8,0.00852635]
[1641506073117,3.62925,3429.1,3428.8,1.47584]
[1641506073563,3.62925,3429.1,3428.9,0.00795793]
[1641506074566,2.9,3429.1,3428.9,0.00795793]
[1641506075768,2.9,3429.1,3429.0,1.46731365]
[1641506076169,2.9,3429.1,3429.0,1.47470315]
[1641506076367,2.9,3429.1,3429.0,0.0073895]
[1641506076767,2.9,3429.1,3428.9,0.00795793]
[1641506077820,2.9,3429.1,3428.8,0.00852635]
[1641506078223,2.9,3429.1,3428.8,0.73757635]
[1641506078621,2.411,3429.1,3428.9,0.00795793]
[1641506079422,2.411,3429.1,3428.9,0.73691793]
[1641506079625,2.411,3429.1,3429.0,5.24615878]
[1641506079822,2.1912,3429.1,3429.0,9.95354828]
[1641506080023,1.0906,3429.1,3429.0,9.95354828]
[1641506080422,1.0906,3429.1,3429.0,5.25354828]
[1641506080825,1.0906,3429.1,3429.0,2.00354828]
[1641506081669,1.0906,3429.1,3429.0,3.46252998]
[1641506081867,0.03520656,3429.7,3429.0,3.46252998]
[1641506082068,0.03520656,3429.7,3429.5,1.28289333]
[1641506084471,0.03520656,3429.7,3429.3,1.45786]
[1641506084670,0.03520656,3429.7,3429.2,1.1454]
[1641506084918,0.03520656,3429.7,3429.4,0.00511581]
[1641506085113,0.03520656,3429.7,3429.3,0.00568423]
[1641506086415,0.76424656,3429.7,3429.3,0.00568423]
[1641506087019,0.76424656,3429.7,3429.2,0.00625266]
[1641506087516,3.66424656,3429.7,3429.2,0.00625266]
[1641506088966,5.7683994,3429.7,3429.2,0.00625266]
[1641506089167,5.78179484,3429.7,3429.2,0.00625266]
[1641506089368,5.78262131,3429.7,3429.2,0.00625266]
[1641506090074,5.79986086,3429.7,3429.2,0.00625266]
[1641506090570,3.66424656,3429.7,3429.2,0.00625266]
[1641506092417,2.93520656,3429.7,3429.2,0.00625266]
[1641506093017,2.73520656,3429.7,3429.2,0.00625266]
[1641506093617,3.46423656,3429.7,3429.2,0.00625266]
[1641506094618,0.12350013,3429.6,3429.3,1.4589817]
[1641506095018,0.12350013,3429.6,3429.4,0.00511581]
[1641506096067,0.12350013,3429.6,3429.4,1.46409751]
[1641506096468,0.12350013,3429.6,3429.5,0.00454739]
[1641506101621,2.73520656,3429.7,3429.5,0.00454739]
[1641506101822,2.73520656,3429.7,3429.5,1.46352909]
[1641506103320,0.12349934,3429.6,3429.5,0.00454739]
[1641506106077,2.73520656,3429.7,3429.5,0.00454739]
[1641506106276,2.73520656,3429.7,3429.5,1.46352909]
[1641506107078,0.12349704,3429.6,3429.5,0.00454739]
[1641506107718,0.12349704,3429.6,3429.5,1.46352909]
[1641506108523,0.12349704,3429.6,3429.5,0.00454739]
[1641506113873,0.12349704,3429.6,3429.4,0.00511581]
[1641506115824,0.12349704,3429.6,3429.4,1.46409751]
[1641506116121,0.12349704,3429.6,3429.5,0.00454739]
[1641506120980,1.12349704,3429.6,3429.5,0.00454739]
[1641506121279,1.12349704,3429.6,3429.3,0.00568423]
[1641506121879,1.85254704,3429.6,3429.3,0.00568423]
[1641506122079,1.85254704,3429.6,3429.3,1.46466593]
[1641506122628,1.85254704,3429.6,3429.4,0.00511581]
[1641506123331,0.12349704,3429.5,3429.4,0.00511581]
[1641506123732,0.12349704,3429.5,3429.3,0.00568423]
[1641506124331,0.85255704,3429.5,3429.3,0.00568423]
[1641506124629,0.85255704,3429.5,3429.2,0.00625266]
[1641506125032,0.12349704,3429.4,3429.2,0.00625266]
[1641506125431,0.85257704,3429.4,3429.2,0.00625266]
[1641506126877,1.15257704,3429.4,3429.2,0.00625266]
[1641506127076,1.02908,3429.4,3429.2,0.00625266]
[1641506127277,0.85408,3429.4,3429.2,1.46523436]
[1641506127478,0.72908,3429.4,3429.2,1.46523436]
[1641506127677,0.72908,3429.4,3429.3,0.00568423]
[1641506128578,0.72908,3429.4,3429.2,0.00625266]
[1641506130037,0.72905,3429.5,3429.2,0.00625266]
[1641506130739,1.0,3429.6,3429.2,0.00625266]
[1641506131437,1.72903,3429.6,3429.2,0.00625266]
[1641506131636,2.73520656,3429.7,3429.2,0.00625266]
[1641506132338,1.0,3429.6,3429.2,0.00625266]
[1641506132538,1.7797,3429.6,3429.2,0.00625266]
[1641506132739,3.6459207,3429.5,3429.2,0.00625266]
[1641506132939,2.9167307,3429.5,3429.2,0.00625266]
[1641506133139,0.7293031,3429.3,3429.0,0.0073895]
[1641506133339,0.72931,3429.2,3429.0,0.0073895]
[1641506133577,1.32931,3429.2,3429.0,0.0073895]
[1641506133980,3.05862,3429.2,3429.0,0.0073895]
[1641506134177,1.45869,3429.0,3428.6,0.0096632]
[1641506134381,0.72934,3428.8,3428.6,0.0096632]
[1641506134579,2.12932187,3428.7,3428.6,0.0096632]
[1641506134777,1.94204,3428.8,3428.6,0.0096632]
[1641506134980,1.4586892,3428.7,3428.6,0.0096632]
[1641506135182,6.0586892,3428.7,3428.6,0.0096632]
[1641506135377,0.72934,3428.6,3428.5,0.01023162]
[1641506136380,2.84919901,3428.6,3428.5,0.01023162]
[1641506136580,3.84919901,3428.6,3428.5,0.01023162]
[1641506136779,3.84919901,3428.6,3428.4,0.01080004]
[1641506136780,1.72934,3428.6,3428.4,0.01080004]
[1641506136983,1.0,3428.5,3428.4,0.01080004]
[1641506137632,3.07779732,3428.5,3428.4,0.01080004]
[1641506137833,0.72936,3428.4,3428.3,0.01136847]
[1641506139035,1.72936,3428.4,3428.3,0.01136847]
[1641506141072,1.72936,3428.4,3428.2,0.01193689]
[1641506141671,1.72936,3428.4,3428.2,1.47091859]
[1641506142073,1.72936,3428.4,3428.3,0.01136847]
[1641506142473,1.72936,3428.4,3428.3,1.47035017]
[1641506143076,1.0,3428.4,3428.3,1.47035017]
[1641506143274,0.18035728,3428.4,3428.3,0.01136847]
[1641506143677,0.18035728,3428.4,3428.3,0.43136847]
[1641506144073,2.9,3428.5,3428.3,0.43136847]
[1641506144274,2.9,3428.5,3428.4,3.82902]
[1641506144473,2.9,3428.5,3428.4,1.15982004]
[1641506145529,2.9,3428.5,3428.4,8.15982004]
[1641506145727,0.00470909,3429.1,3428.9,2.27298827]
[1641506146032,0.00470909,3429.1,3429.0,0.0073895]
[1641506147227,1.94455008,3429.5,3429.0,0.0073895]
[1641506147431,2.06988752,3429.7,3429.0,0.0073895]
[1641506147628,0.03533319,3429.8,3429.0,1.46449642]
[1641506147827,0.04004218,3429.8,3429.0,1.46449642]
[1641506148029,0.04004218,3429.8,3429.1,0.00682108]
[1641506148427,2.22500937,3429.6,3429.2,0.72894]
[1641506148675,2.22500937,3429.6,3429.3,0.72893]
[1641506148877,2.22500937,3429.6,3429.3,0.73461423]
[1641506149076,2.22500937,3429.6,3429.4,0.00511581]
[1641506149875,0.18002535,3429.5,3429.4,0.00511581]
[1641506150485,0.18002535,3429.5,3429.3,0.00568423]
[1641506150678,0.17226592,3429.5,3429.3,0.00568423]
[1641506151279,5.12500937,3429.6,3429.3,0.00568423]
[1641506151479,1.0,3429.5,3429.3,0.00568423]
[1641506151780,1.72909,3429.5,3429.1,0.00682108]
[1641506155334,0.72909,3429.5,3429.1,0.00682108]
[1641506156379,5.12500937,3429.6,3429.1,0.00682108]
[1641506156579,5.12500937,3429.6,3429.1,0.73586108]
[1641506156982,5.12500937,3429.6,3429.2,0.00625266]
[1641506157380,5.12500937,3429.6,3429.1,0.00682108]
[1641506157680,5.12500937,3429.6,3429.0,0.0073895]
[1641506158480,5.12500937,3429.6,3429.2,0.72902]
[1641506158682,5.12500937,3429.6,3429.2,2.18612692]
[1641506158882,5.12500937,3429.6,3429.3,0.00568423]
[1641506159682,1.0,3429.5,3429.3,0.00568423]
[1641506160529,1.7291239,3429.5,3429.3,0.00568423]
[1641506160727,1.0,3429.5,3429.3,0.00568423]
[1641506160925,1.72909,3429.5,3429.1,0.00682108]
[1641506161726,1.72909,3429.5,3429.0,0.0073895]
[1641506162528,5.12500937,3429.6,3428.8,0.00852635]
[1641506162727,5.12500937,3429.6,3429.0,0.72905]
[1641506163130,5.12500937,3429.6,3429.1,0.00682108]
[1641506164375,5.12500937,3429.6,3429.2,0.72901]
[1641506164777,5.12500937,3429.6,3429.3,0.00568423]
[1641506166984,5.12500937,3429.6,3429.3,0.73467423]
[1641506167330,5.12500937,3429.6,3429.4,0.00511581]
[1641506171378,0.39935945,3429.5,3429.4,0.00511581]
[1641506175529,2.9,3429.6,3429.4,0.00511581]
[1641506177129,4.54554139,3429.6,3429.4,0.00511581]
[1641506178229,3.54554139,3429.6,3429.4,0.00511581]
[1641506178580,0.39934678,3429.5,3429.4,0.00511581]
[1641506178979,0.34934678,3429.5,3429.4,0.00511581]
[1641506179279,3.54554139,3429.6,3429.4,0.00511581]
[1641506181082,1.9,3429.6,3429.4,0.00511581]
[1641506183536,2.9,3429.6,3429.4,0.00511581]
[1641506183940,1.9,3429.6,3429.4,0.00511581]
[1641506184137,2.9,3429.6,3429.2,0.00625266]
[1641506184337,2.9,3429.6,3429.3,0.729]
[1641506184538,1.9,3429.6,3429.3,0.729]
[1641506184738,1.9,3429.6,3429.4,0.00511581]
[1641506190430,2.14443509,3429.5,3429.4,0.00511581]
[1641506190628,2.14443509,3429.5,3429.0,1.45710692]
[1641506190629,4.39753509,3429.5,3429.1,0.00682108]
[1641506190828,4.59573509,3429.5,3429.1,0.00682108]
[1641506191427,4.59573509,3429.5,3429.0,0.0073895]
[1641506192630,0.72918,3429.3,3428.7,0.00909477]
[1641506192829,2.15489498,3429.2,3428.7,0.00909477]
[1641506193031,2.45489498,3429.2,3428.7,0.00909477]
[1641506193230,3.45489498,3429.2,3428.7,0.00909477]
[1641506193676,1.0,3429.1,3428.7,0.00909477]
[1641506194077,2.45489498,3429.2,3428.7,0.00909477]
[1641506194281,2.15489498,3429.2,3428.7,0.00909477]
[1641506194479,2.15489498,3429.2,3428.6,0.0096632]
[1641506194679,0.72918,3429.0,3428.6,0.0096632]
[1641506195681,1.0,3429.3,3428.6,0.7388132]
[1641506195881,0.72915,3429.2,3428.6,0.0096632]
[1641506196084,0.3,3429.3,3428.7,0.00909477]
[1641506196285,2.41131148,3429.3,3428.4,0.01080004]
[1641506196480,1.3,3429.4,3428.4,0.01080004]
[1641506196684,0.3,3429.4,3428.4,0.01080004]
[1641506196884,3.27171724,3429.5,3428.4,0.01080004]
[1641506196885,3.57171724,3429.5,3428.4,0.01080004]
[1641506197328,3.57171724,3429.5,3428.7,0.72913]
[1641506197731,1.3,3429.5,3428.8,0.00852635]
[1641506197931,2.15572934,3429.4,3428.8,0.00852635]
[1641506199135,2.15572934,3429.4,3428.7,0.00909477]
[1641506199333,0.72916,3429.1,3428.7,0.00909477]
[1641506200236,0.39735675,3429.0,3428.7,0.73820477]
[1641506200634,0.39735675,3429.0,3428.8,0.00852635]
[1641506201079,0.39735675,3429.2,3428.8,0.00852635]
[1641506201280,0.39735675,3429.2,3428.9,0.72909]
[1641506201679,0.3,3429.3,3429.0,0.0073895]
[1641506202088,1.02911,3429.4,3429.0,0.0073895]
[1641506202480,0.40291152,3429.2,3429.0,0.0073895]
[1641506202681,0.40291152,3429.2,3429.0,0.7364695]
[1641506203080,0.40291152,3429.2,3429.1,0.00682108]
[1641506203283,0.40291152,3429.3,3429.1,0.00682108]
[1641506203683,0.40291152,3429.3,3429.1,0.73588108]
[1641506204080,0.40291152,3429.3,3429.2,0.00625266]
[1641506205129,2.9,3429.6,3429.2,0.00625266]
[1641506205130,0.40291152,3429.5,3429.2,0.00625266]
[1641506205326,0.40291152,3429.5,3429.3,1.20410467]
[1641506205728,0.40291152,3429.5,3429.4,0.00511581]
[1641506206930,1.40291152,3429.5,3429.4,0.00511581]
[1641506207333,1.0,3429.5,3429.4,0.00511581]
[1641506207530,1.9,3429.6,3429.4,0.00511581]
[1641506207734,3.66123322,3429.6,3429.4,0.00511581]